fUST/lending_fUST_20250909
["ID","MTS","AMOUNT","RATE_DAILY","PERIOD"]
[384354651,1757347880118,-480.0,0.00014794,2]
[384354652,1757347880130,-480.0,0.00014794,2]
[384354653,1757347880140,-480.0,0.00014794,2]
[384354654,1757347880150,-486.66400787,0.00014794,2]
[384354655,1757347880159,-481.71513019,0.00014794,2]
[384354656,1757347880169,-480.0,0.00014794,2]
[384354657,1757347880179,-480.0,0.00014794,2]
[384354658,1757347880189,-480.0,0.00014794,2]
[384354659,1757347880199,-484.38603467,0.00014794,2]
[384354660,1757347880208,-480.0,0.00014794,2]
[384354661,1757347880218,-480.0,0.00014794,2]
[384354662,1757347880228,-480.0,0.00014794,2]
[384354663,1757347880238,-480.0,0.00014794,2]
[384354664,1757347880247,-480.0,0.00014794,2]
[384354665,1757347880258,-480.0,0.00014794,2]
[384354666,1757347880268,-480.0,0.00014794,2]
[384354667,1757347880277,-480.0,0.00014794,2]
[384354668,1757347880287,-480.0,0.00014794,2]
[384354669,1757347880297,-480.0,0.00014794,2]
[384354670,1757347880307,-480.0,0.00014794,2]
[384354671,1757347880318,-487.06637419,0.00014794,2]
[384354672,1757347880327,-3456.36,0.00014794,2]
[384354673,1757347880337,-480.0,0.00014794,2]
[384354674,1757347880347,-480.0,0.00014794,2]
[384354675,1757347880356,-480.0,0.00014794,2]
[384354676,1757347880366,-480.0,0.00014794,2]
[384354677,1757347880377,-480.0,0.00014794,2]
[384354678,1757347880387,-765.21,0.00014794,2]
[384354679,1757347880397,-480.0,0.00014794,2]
[384354680,1757347880411,-480.0,0.00014794,2]
[384354681,1757347880420,-480.0,0.00014794,2]
[384354682,1757347880433,-480.0,0.00014794,2]
[384354683,1757347880443,-480.0,0.00014794,2]
[384354684,1757347880454,-318.84201018,0.00014794,2]
[384354685,1757347880464,-480.0,0.00014794,2]
[384354686,1757347880475,-480.0,0.00014794,2]
[384354687,1757347880485,-480.0,0.00014794,2]
[384354688,1757347880495,-480.0,0.00014794,2]
[384354689,1757347880505,-480.0,0.00014794,2]
[384354690,1757347880515,-480.0,0.00014794,2]
[384354691,1757347880525,-480.0,0.00014794,2]
[384354692,1757347880535,-480.0,0.00014794,2]
[384354693,1757347880544,-480.0,0.00014794,2]
[384354694,1757347880554,-2117.86,0.00014794,2]
[384354695,1757347880563,-480.0,0.00014794,2]
[384354696,1757347880573,-480.0,0.00014794,2]
[384354697,1757347880583,-625.406492,0.00014794,2]
[384354698,1757347880593,-729.78,0.00014794,2]
[384354699,1757347880602,-480.0,0.00014794,2]
[384354700,1757347880612,-480.0,0.00014794,2]
[384354701,1757347880621,-535.37275048,0.00014794,2]
[384354702,1757347880631,-480.0,0.00014794,2]
[384354703,1757347880640,-480.0,0.00014794,2]
[384354704,1757347880650,-488.93365423,0.00014794,2]
[384354705,1757347880660,-480.0,0.00014794,2]
[384354706,1757347880669,-480.0,0.00014794,2]
[384354707,1757347880680,-480.0,0.00014794,2]
[384354708,1757347880689,-480.0,0.00014794,2]
[384354709,1757347880699,-480.0,0.00014794,2]
[384354710,1757347880708,-480.0,0.00014794,2]
[384354711,1757347880718,-480.0,0.00014794,2]
[384354712,1757347880727,-480.0,0.00014794,2]
[384354713,1757347880738,-480.0,0.00014794,2]
[384354714,1757347880748,-480.0,0.00014794,2]
[384354715,1757347880757,-480.0,0.00014794,2]
[384354716,1757347880894,-480.0,0.00014794,2]
[384354717,1757347880903,-480.0,0.00014794,2]
[384354718,1757347880913,-480.0,0.00014794,2]
[384354719,1757347880923,-480.0,0.00014794,2]
[384354720,1757347880933,-480.0,0.00014794,2]
[384354721,1757347880943,-480.0,0.00014794,2]
[384354722,1757347880952,-480.0,0.00014794,2]
[384354723,1757347880962,-480.0,0.00014794,2]
[384354724,1757347880972,-1635.87,0.00014794,2]
[384354725,1757347880981,-480.0,0.00014794,2]
[384354726,1757347880990,-1048.06,0.00014794,2]
[384354727,1757347881000,-579.25,0.00014794,2]
[384354728,1757347881009,-480.0,0.00014794,2]
[384354729,1757347881019,-241.71812519,0.00014794,2]
[384354730,1757347881028,-480.0,0.00014794,2]
[384354731,1757347881038,-1811.2,0.00014794,2]
[384354732,1757347881047,-480.0,0.00014794,2]
[384354733,1757347881056,-480.0,0.00014794,2]
[384354734,1757347881066,-480.0,0.00014794,2]
[384354735,1757347881075,-480.0,0.00014794,2]
[384354736,1757347881084,-480.0,0.00014794,2]
[384354737,1757347881094,-1155.18,0.00014794,2]
[384354738,1757347881104,-685.22,0.00014794,2]
[384354739,1757347881113,-484.09369498,0.00014794,2]
[384354740,1757347881122,-480.0,0.00014794,2]
[384354741,1757347881132,-480.0,0.00014794,2]
[384354742,1757347881141,-480.0,0.00014794,2]
[384354743,1757347881150,-480.0,0.00014794,2]
[384354744,1757347881159,-480.0,0.00014794,2]
[384354745,1757347881169,-480.0,0.00014794,2]
[384354746,1757347881178,-480.0,0.00014794,2]
[384354747,1757347881187,-480.0,0.00014794,2]
[384354748,1757347881197,-480.0,0.00014794,2]
[384354749,1757347881206,-480.0,0.00014794,2]
[384354750,1757347881216,-480.0,0.00014794,2]
[384354751,1757347881226,-483.69341782,0.00014794,2]
[384354752,1757347881235,-480.0,0.00014794,2]
[384354753,1757347881245,-480.0,0.00014794,2]
[384354754,1757347881254,-507.66,0.00014794,2]
[384354755,1757347881264,-480.0,0.00014794,2]
[384354756,1757347881274,-480.0,0.00014794,2]
[384354757,1757347881283,-480.0,0.00014794,2]
[384354758,1757347881293,-480.0,0.00014794,2]
[384354759,1757347881303,-480.0,0.00014794,2]
[384354760,1757347881314,-300.45299938,0.00014794,2]
[384354761,1757347881323,-480.0,0.00014794,2]
[384354762,1757347881334,-480.0,0.00014794,2]
[384354763,1757347881345,-480.0,0.00014794,2]
[384354764,1757347881354,-480.0,0.00014794,2]
[384354765,1757347881364,-480.0,0.00014794,2]
[384354766,1757347881375,-480.0,0.00014794,2]
[384354767,1757347881384,-480.0,0.00014794,2]
[384354768,1757347881396,-480.0,0.00014794,2]
[384354769,1757347881409,-480.0,0.00014794,2]
[384354770,1757347881419,-480.0,0.00014794,2]
[384354771,1757347881429,-480.0,0.00014794,2]
[384354772,1757347881439,-704.69,0.00014794,2]
[384354773,1757347881449,-480.0,0.00014794,2]
[384354774,1757347881458,-480.0,0.00014794,2]
[384354775,1757347881468,-480.0,0.00014794,2]
[384354776,1757347881480,-480.0,0.00014794,2]
[384354777,1757347881490,-480.0,0.00014794,2]
[384354778,1757347881500,-4017.16,0.00014794,2]
[384354779,1757347881509,-480.0,0.00014794,2]
[384354780,1757347881519,-480.0,0.00014794,2]
[384354781,1757347881529,-480.0,0.00014794,2]
[384354782,1757347881539,-480.0,0.00014794,2]
[384354783,1757347881548,-480.0,0.00014794,2]
[384354784,1757347881558,-480.0,0.00014794,2]
[384354785,1757347881568,-480.0,0.00014794,2]
[384354786,1757347881578,-480.0,0.00014794,2]
[384354787,1757347881588,-480.0,0.00014794,2]
[384354788,1757347881598,-480.0,0.00014794,2]
[384354789,1757347881608,-814.79,0.00014794,2]
[384354790,1757347881618,-310.59200396,0.00014794,2]
[384354791,1757347881640,-480.0,0.00013698,2]
[384354792,1757347881650,-169.40799604,0.00014794,2]
[384354793,1757347881659,-480.0,0.00014794,2]
[384354794,1757347881669,-480.0,0.00014794,2]
[384354795,1757347881678,-480.0,0.00014794,2]
[384354796,1757347881689,-480.0,0.00014794,2]
[384354797,1757347881698,-488.0207895,0.00014794,2]
[384354798,1757347881708,-480.0,0.00014794,2]
[384354799,1757347881718,-706.47,0.00014794,2]
[384354800,1757347881728,-480.0,0.00014794,2]
[384354801,1757347881738,-480.0,0.00014794,2]
[384354802,1757347881748,-480.0,0.00014794,2]
[384354803,1757347881758,-480.0,0.00014794,2]
[384354804,1757347881768,-480.0,0.00014794,2]
[384354805,1757347881778,-480.0,0.00014794,2]
[384354806,1757347881788,-480.0,0.00014794,2]
[384354807,1757347881798,-480.0,0.00014794,2]
[384354808,1757347881809,-480.0,0.00014794,2]
[384354809,1757347881820,-480.0,0.00014794,2]
[384354810,1757347881831,-480.0,0.00014794,2]
[384354811,1757347881843,-480.0,0.00014794,2]
[384354812,1757347881853,-480.0,0.00014794,2]
[384354813,1757347881863,-220.22644655,0.00014794,2]
[384354814,1757347881873,-484.12425234,0.00014794,2]
[384354815,1757347881882,-480.0,0.00014794,2]
[384354816,1757347881892,-480.0,0.00014794,2]
[384354817,1757347881902,-480.0,0.00014794,2]
[384354818,1757347881913,-480.0,0.00014794,2]
[384354819,1757347881922,-480.0,0.00014794,2]
[384354820,1757347881932,-975.88,0.00014794,2]
[384354821,1757347881942,-480.0,0.00014794,2]
[384354822,1757347881952,-482.3281145,0.00014794,2]
[384354823,1757347881962,-480.0,0.00014794,2]
[384354824,1757347881972,-480.0,0.00014794,2]
[384354825,1757347881982,-1981.77,0.00014794,2]
[384354826,1757347881992,-480.0,0.00014794,2]
[384354827,1757347882003,-480.0,0.00014794,2]
[384354828,1757347882012,-480.0,0.00014794,2]
[384354829,1757347882022,-480.0,0.00014794,2]
[384354830,1757347882031,-213.46605107,0.00014794,2]
[384354831,1757347882528,-420.73348553,0.00013698,2]
[384354832,1757347882539,-857.02985847,0.00013698,2]
[384354833,1757347882549,-1277.763344,0.00013698,2]
[384354834,1757347882559,-1277.763344,0.00013698,2]
[384354835,1757347882569,-1277.763344,0.00013698,2]
[384354836,1757347882579,-484.37420246,0.00013698,2]
[384354837,1757347882588,-1277.763344,0.00013972,2]
[384354838,1757347882598,-1277.763344,0.00013972,2]
[384354839,1757347882608,-1277.763344,0.00013972,2]
[384354840,1757347882617,-1277.763344,0.00013972,2]
[384354841,1757347882627,-266.53394893,0.00014794,2]
[384354842,1757347882637,-1000.0,0.00014795,2]
[384354843,1757347882646,-1000.0,0.00014821,2]
[384354844,1757347882656,-57.86108298,0.00014821,2]
[384354845,1757347882668,-328.95128276,0.00014821,2]
[384354846,1757347882688,-613.18763426,0.00014821,2]
[384354847,1757347882698,-407.37161345,0.00014821,2]
[384354848,1757347882850,-1277.763344,0.00013698,2]
[384354849,1757347882860,-1277.763344,0.00013698,2]
[384354850,1757347882870,-1277.763344,0.00013698,2]
[384354851,1757347882879,-1277.763344,0.00013698,2]
[384354852,1757347882889,-911.6005233,0.00013698,2]
[384354853,1757347883799,188.41063916,0.00013297,2]
[384354854,1757347883835,214.3923464,0.00013297,2]
[384354855,1757347883869,166.82916937,0.00013297,2]
[384354856,1757347885718,500.0,0.00013297,2]
[384354857,1757347885768,500.0,0.00013297,2]
[384354858,1757347885807,500.0,0.00013297,2]
[384354859,1757347885841,500.0,0.00013297,2]
[384354860,1757347885880,73.75094645,0.00013297,2]
[384354861,1757347885909,426.24905355,0.00013297,2]
[384354862,1757347885943,200.0,0.00013297,2]
[384354863,1757347886440,500.0,0.00013297,2]
[384354864,1757347890021,500.0,0.00013297,2]
[384354865,1757347890086,500.0,0.00013297,2]
[384354866,1757347890131,500.0,0.00013297,2]
[384354867,1757347890186,500.0,0.00013297,2]
[384354868,1757347890243,500.0,0.00013297,2]
[384354869,1757347890295,650.0,0.00013297,2]
[384354870,1757347940565,468.9599547,0.00012732,2]
[384354871,1757347942414,5254.80099175,0.00013198,2]
[384354872,1757347942444,10000.01,0.00013198,2]
[384354873,1757347942471,10000.01,0.00013198,2]
[384354874,1757347942497,10000.01,0.00013198,2]
[384354875,1757347942523,10000.01,0.00013198,2]
[384354876,1757347942548,10000.01,0.00013198,2]
[384354877,1757347942574,10000.01,0.00013198,2]
[384354878,1757347942600,10000.01,0.00013198,2]
[384354879,1757347942627,10000.01,0.00013198,2]
[384354880,1757347942653,10000.01,0.00013198,2]
[384354881,1757347943225,-185.17404277,0.00013198,2]
[384354882,1757347946101,-154.75521047,0.00013198,2]
[384354883,1757347948096,-152.0,0.00013198,2]
[384354884,1757347951591,239.14395489,0.00013066,2]
[384354885,1757347956491,186.84275203,0.00013197,2]
[384354886,1757347956524,347.49118742,0.00013197,2]
[384354887,1757347965893,500.0,0.00013197,2]
[384354888,1757347965933,500.0,0.00013197,2]
[384354889,1757347965969,500.0,0.00013197,2]
[384354890,1757347966018,500.0,0.00013197,2]
[384354891,1757347966051,399.1300459,0.00013197,2]
[384354892,1757347966085,420.64567819,0.00013197,2]
[384354893,1757347966122,500.0,0.00013197,2]
[384354894,1757347966161,500.0,0.00013197,2]
[384354895,1757347966201,300.0,0.00013197,2]
[384354896,1757347966246,500.0,0.00013197,2]
[384354897,1757347966281,500.0,0.00013197,2]
[384354898,1757347968755,169.5398661,0.00013197,2]
[384354899,1757347968801,500.0,0.00013197,2]
[384354900,1757347968851,454.57458696,0.00013197,2]
[384354901,1757347968899,500.0,0.00013197,2]
[384354902,1757347970074,500.0,0.00013197,2]
[384354903,1757347970128,500.0,0.00013197,2]
[384354904,1757347970186,489.66769972,0.00013197,2]
[384354905,1757347977749,164.11112026,0.00013197,2]
[384354906,1757347983211,300.0,0.00013197,2]
[384354907,1757347983365,500.0,0.00013197,2]
[384354908,1757347983420,28.86310853,0.00013197,2]
[384354909,1757347983456,471.13689147,0.00013197,2]
[384354910,1757347983495,500.0,0.00013197,2]
[384354911,1757347983749,185.82332649,0.00013197,2]
[384354912,1757347983868,232.40982718,0.00013197,2]
[384354913,1757347987985,420.64567819,0.00013197,2]
[384354914,1757348007651,579.35432181,0.00013197,2]
[384354915,1757348043276,300.0,0.00013197,2]
[384354916,1757348067968,170.24379531,0.00012802,2]
[384354917,1757348071233,3066.56813354,0.00013066,2]
[384354918,1757348081224,260.92,0.00013198,2]
[384354919,1757348087953,1319.72278753,0.00013066,2]
[384354920,1757348102871,300.0,0.00013197,2]
[384354921,1757348107694,1200.0,0.00013197,2]
[384354922,1757348133616,500.0,0.00013197,2]
[384354923,1757348135744,205.46,0.00012329,2]
[384354924,1757348146328,287.72523848,0.00012329,2]
[384354925,1757348146359,20.68476152,0.00012329,2]
[384354926,1757348157023,666.0,0.00012696,2]
[384354927,1757348157057,396.07,0.00012329,2]
[384354928,1757348163292,300.0,0.00013197,2]
[384354929,1757348167466,445.95,0.00012329,2]
[384354930,1757348177899,468.2,0.00012329,2]
[384354931,1757348188361,470.64,0.00012329,2]
[384354932,1757348198938,459.27,0.00012329,2]
[384354933,1757348209408,438.61,0.00012329,2]
[384354934,1757348219963,412.08,0.00012329,2]
[384354935,1757348227305,300.0,0.00013197,2]
[384354936,1757348230380,414.55,0.00012329,2]
[384354937,1757348233100,179.0,0.00013197,2]
[384354938,1757348240856,345.46,0.00012329,2]
[384354939,1757348251297,314.84,0.00012329,2]
[384354940,1757348254808,500.0,0.00013197,2]
[384354941,1757348255901,151.0,0.000129,2]
[384354942,1757348256244,151.0,0.000125,2]
[384354943,1757348256660,151.0,0.000121,2]
[384354944,1757348257062,151.0,0.000118,2]
[384354945,1757348257594,151.0,0.000114,2]
[384354946,1757348257994,151.0,0.00011,2]
[384354947,1757348261752,397.13,0.00012329,2]
[384354948,1757348272149,330.94,0.00012329,2]
[384354949,1757348282583,275.78,0.00012329,2]
[384354950,1757348283829,300.0,0.00013197,2]
[384354951,1757348293089,229.82,0.00012329,2]
[384354952,1757348303564,191.52,0.00012329,2]
[384354962,1757348313201,160.49643942,0.00013066,2]
[384354964,1757348314040,159.6,0.00012329,2]
[384354979,1757348321873,160.49643942,0.00013066,2]
[384354980,1757348324713,756.87235964,0.00012329,2]
[384354981,1757348324740,41.13764036,0.00012329,2]
[384354982,1757348343001,300.0,0.00013197,2]
[384354983,1757348370357,2358.47384568,0.000131,2]
[384354984,1757348380875,500.0,0.00013197,2]
[384354989,1757348402694,300.0,0.00013197,2]
[384354990,1757348408411,1200.0,0.00013197,2]
[384354991,1757348408671,168.3888056,0.00013198,2]
[384354994,1757348411856,2030.296672,0.00013198,2]
[384354995,1757348449462,-187.448763,0.00013198,2]
[384354997,1757348462831,300.0,0.00013197,2]
[384354998,1757348475661,187.448763,0.00013066,2]
[384354999,1757348477692,263.8,0.00013198,2]
[384355000,1757348498849,200.0,0.00025,30]
[384355001,1757348501363,500.0,0.00013197,2]
[384355002,1757348522106,9500.01,0.00012431,2]
[384355003,1757348522133,10000.01,0.00012431,2]
[384355004,1757348522159,3039.5492385,0.00012431,2]
[384355005,1757348523652,300.0,0.00013197,2]
[384355006,1757348535761,500.0,0.00013197,2]
[384355007,1757348535801,500.0,0.00013197,2]
[384355008,1757348535852,446.88441657,0.00013197,2]
[384355009,1757348537445,-7264.04061829,0.00013198,2]
[384355010,1757348546138,-500.0,0.00013197,2]
[384355011,1757348546178,-500.0,0.00013197,2]
[384355012,1757348546212,-500.0,0.00013197,2]
[384355013,1757348546244,-500.0,0.00013197,2]
[384355014,1757348546282,-500.0,0.00013197,2]
[384355015,1757348546321,-295.21261989,0.00013197,2]
[384355016,1757348546356,-500.0,0.00013197,2]
[384355017,1757348546392,-636.87441657,0.00013197,2]
[384355018,1757348546432,-500.0,0.00013197,2]
[384355019,1757348546465,-500.0,0.00013197,2]
[384355020,1757348546592,-500.0,0.00013197,2]
[384355021,1757348546629,-310.0,0.00013197,2]
[384355022,1757348546665,-500.0,0.00013197,2]
[384355023,1757348546701,-500.0,0.00013197,2]
[384355024,1757348546739,-500.0,0.00013197,2]
[384355025,1757348546776,-304.32369992,0.00013197,2]
[384355026,1757348546813,-500.0,0.00013197,2]
[384355027,1757348546850,-500.0,0.00013197,2]
[384355028,1757348546888,-500.0,0.00013197,2]
[384355029,1757348546926,-500.0,0.00013197,2]
[384355030,1757348553636,500.0,0.00013197,2]
[384355031,1757348553673,271.36260016,0.00013197,2]
[384355032,1757348553698,228.63739984,0.00013197,2]
[384355033,1757348553730,500.0,0.00013197,2]
[384355034,1757348553765,413.14176265,0.00013197,2]
[384355035,1757348553803,623.01642721,0.00013197,2]
[384355036,1757348553835,569.24870115,0.00013197,2]
[384355037,1757348555303,321.75519748,0.00013198,2]
[384355038,1757348560376,151.0,0.000131,2]
[384355039,1757348560821,151.0,0.000128,2]
[384355040,1757348561167,151.0,0.000125,2]
[384355041,1757348561537,151.0,0.000122,2]
[384355042,1757348561896,151.0,0.000119,2]
[384355044,1757348582481,300.0,0.00013197,2]
[384355045,1757348596397,1423.04787092,0.00013153,2]
[384355048,1757348662799,200.4804111,0.00013197,2]
[384355049,1757348668619,500.0,0.00013197,2]
[384355051,1757348672113,316.69070579,0.00013197,2]
[384355054,1757348702719,300.0,0.00013197,2]
[384355055,1757348704769,364.55954959,0.00013197,2]
[384355056,1757348704844,500.0,0.00013197,2]
[384355057,1757348707707,1200.0,0.00013197,2]
[384355058,1757348710954,1484.43197427,0.00013198,2]
[384355059,1757348710978,545.86469773,0.00013198,2]
[384355060,1757348712876,1886.77907656,0.00013153,2]
[384355067,1757348750568,500.0,0.00013197,2]
[384355068,1757348762521,300.0,0.00013197,2]
[384355074,1757348823425,300.0,0.00013197,2]
[384355089,1757348855008,160.87759874,0.00013198,2]
[384355092,1757348871601,500.0,0.00013197,2]
[384355094,1757348877672,1245.16688702,0.00013153,2]
[384355095,1757348883094,300.0,0.00013197,2]
[384355096,1757348910512,1500.0,0.00013066,2]
[384355097,1757348921691,31959.24336243,0.0002888,120]
[384355098,1757348921999,160.87759874,0.00013198,2]
[384355100,1757348943532,300.0,0.00013197,2]
[384355102,1757348996720,500.0,0.00013197,2]
[384355103,1757349002610,300.0,0.00013197,2]
[384355104,1757349006857,541.70239182,0.00013198,2]
[384355105,1757349008722,958.74174939,0.00013197,2]
[384355106,1757349008747,241.25825061,0.00013197,2]
[384355131,1757349032299,-20587.22036943,0.00013198,2]
[384355132,1757349032358,-376.14580871,0.00013198,2]
[384355164,1757349038532,-132406.71680939,0.00013198,2]
[384355165,1757349038542,-2030.296672,0.00013299,2]
[384355166,1757349038552,-151.0,0.000133,2]
[384355167,1757349038561,-1201.84639061,0.00013354,2]
[384355168,1757349038572,-1886.77907654,0.00013376,2]
[384355169,1757349038581,-151.0,0.000134,2]
[384355170,1757349038591,-600.0,0.00013461,2]
[384355171,1757349038600,-38705.26577654,0.00013466,2]
[384355172,1757349038610,-500.0,0.00013473,2]
[384355173,1757349038620,-500.0,0.00013473,2]
[384355174,1757349038630,-258.2006534,0.00013473,2]
[384355175,1757349038639,-500.0,0.00013473,2]
[384355176,1757349038648,-500.0,0.00013473,2]
[384355177,1757349038657,-500.0,0.00013473,2]
[384355178,1757349038667,-500.0,0.00013473,2]
[384355179,1757349038676,-500.0,0.00013473,2]
[384355180,1757349038686,-500.75102495,0.00013473,2]
[384355181,1757349038695,-500.0,0.00013473,2]
[384355182,1757349038704,-500.0,0.00013473,2]
[384355183,1757349038713,-500.0,0.00013473,2]
[384355184,1757349038723,-500.0,0.00013473,2]
[384355185,1757349038732,-500.0,0.00013473,2]
[384355186,1757349038741,-50000.0,0.00013473,2]
[384355187,1757349038750,-1886.77907654,0.00013487,2]
[384355188,1757349038760,-200.0,0.000135,2]
[384355189,1757349038773,-304363.84764732,0.000135,2]
[384355190,1757349038782,-17350.95711043,0.00013566,2]
[384355191,1757349038792,-1886.77907654,0.00013598,2]
[384355192,1757349038801,-19886.3023512,0.00013647,2]
[384355193,1757349038811,-3594.1819481,0.00013647,2]
[384355194,1757349038823,-500.81739419,0.00013673,2]
[384355195,1757349038832,-501.06957447,0.00013673,2]
[384355196,1757349038843,-501.82497982,0.00013673,2]
[384355197,1757349038852,-500.0,0.00013673,2]
[384355198,1757349038862,-164.36922765,0.00013673,2]
[384355199,1757349038871,-501.65488604,0.00013673,2]
[384355200,1757349038880,-500.0,0.00013673,2]
[384355201,1757349038889,-500.0,0.00013673,2]
[384355202,1757349038899,-500.0,0.00013673,2]
[384355203,1757349038908,-500.0,0.00013673,2]
[384355204,1757349038917,-501.54856755,0.00013673,2]
[384355205,1757349038927,-500.0,0.00013673,2]
[384355206,1757349038937,-500.0,0.00013673,2]
[384355207,1757349038946,-500.0,0.00013673,2]
[384355208,1757349038955,-500.0,0.00013673,2]
[384355209,1757349038964,-400.72478266,0.00013673,2]
[384355210,1757349038973,-335.62398213,0.00013673,2]
[384355211,1757349038984,-158.02775411,0.00013673,2]
[384355212,1757349038993,-500.46809398,0.00013673,2]
[384355213,1757349039002,-500.0,0.00013673,2]
[384355214,1757349039011,-500.0,0.00013673,2]
[384355215,1757349039021,-500.0,0.00013673,2]
[384355216,1757349039030,-500.0,0.00013673,2]
[384355217,1757349039039,-500.0,0.00013673,2]
[384355218,1757349039048,-428.17695497,0.00013673,2]
[384355219,1757349039057,-502.45815732,0.00013673,2]
[384355220,1757349039066,-500.0,0.00013673,2]
[384355221,1757349039075,-500.0,0.00013673,2]
[384355222,1757349039085,-500.0,0.00013673,2]
[384355223,1757349039094,-500.0,0.00013673,2]
[384355224,1757349039103,-500.0,0.00013673,2]
[384355225,1757349039113,-500.0,0.00013673,2]
[384355226,1757349039122,-503.10042021,0.00013673,2]
[384355227,1757349039132,-19363.40046272,0.00013695,2]
[384355228,1757349039141,-58685.38427495,0.00013696,2]
[384355229,1757349039151,-480.0,0.00013698,2]
[384355230,1757349039161,-480.0,0.00013698,2]
[384355231,1757349039171,-480.0,0.00013698,2]
[384355232,1757349039180,-480.0,0.00013698,2]
[384355233,1757349039190,-480.0,0.00013698,2]
[384355234,1757349039200,-480.0,0.00013698,2]
[384355235,1757349039210,-480.0,0.00013698,2]
[384355236,1757349039221,-485.12721085,0.00013698,2]
[384355237,1757349039230,-480.0,0.00013698,2]
[384355238,1757349039239,-480.0,0.00013698,2]
[384355239,1757349039249,-480.0,0.00013698,2]
[384355240,1757349039259,-480.0,0.00013698,2]
[384355241,1757349039268,-480.0,0.00013698,2]
[384355242,1757349039277,-480.0,0.00013698,2]
[384355243,1757349039293,-480.0,0.00013698,2]
[384355244,1757349039310,-480.0,0.00013698,2]
[384355245,1757349039320,-480.0,0.00013698,2]
[384355246,1757349039330,-480.0,0.00013698,2]
[384355247,1757349039339,-480.0,0.00013698,2]
[384355248,1757349039349,-480.0,0.00013698,2]
[384355249,1757349039360,-480.0,0.00013698,2]
[384355250,1757349039369,-480.0,0.00013698,2]
[384355251,1757349039378,-480.0,0.00013698,2]
[384355252,1757349039388,-480.0,0.00013698,2]
[384355253,1757349039397,-480.0,0.00013698,2]
[384355254,1757349039407,-480.0,0.00013698,2]
[384355255,1757349039416,-481.50904131,0.00013698,2]
[384355256,1757349039426,-480.0,0.00013698,2]
[384355257,1757349039435,-480.0,0.00013698,2]
[384355258,1757349039445,-480.0,0.00013698,2]
[384355259,1757349039454,-480.0,0.00013698,2]
[384355260,1757349039464,-359.32162591,0.00013698,2]
[384355261,1757349039473,-480.64569854,0.00013698,2]
[384355262,1757349039483,-480.0,0.00013698,2]
[384355263,1757349039492,-490.44406265,0.00013698,2]
[384355264,1757349039501,-480.0,0.00013698,2]
[384355265,1757349039511,-480.0,0.00013698,2]
[384355266,1757349039521,-480.0,0.00013698,2]
[384355267,1757349039530,-480.0,0.00013698,2]
[384355268,1757349039540,-480.0,0.00013698,2]
[384355269,1757349039549,-480.0,0.00013698,2]
[384355270,1757349039561,-480.0,0.00013698,2]
[384355271,1757349039571,-480.0,0.00013698,2]
[384355272,1757349039580,-480.0,0.00013698,2]